[Event "WSTCC-50 2024"]
[Site "Krakow"]
[Date "2024.07.09"]
[Round "7.2"]
[White "Forgo, Eva"]
[Black "Burrows, Martin P"]
[Result "0-1"]
[ECO "B93"]
[WhiteElo "2060"]
[BlackElo "2019"]
[Annotator "NA RC"]
[PlyCount "92"]
[EventDate "2024.07.01"]
[EventType "team-tourn"]
[EventCountry "POL"]
[SourceTitle "playchess.com"]
[Source "ChessBase"]
[SourceQuality "1"]
[TimeControl "40/5400+30:1800+30"]

1. e4 {[%emt 0:00:10]} c5 {[%emt 0:00:12]} 2. Nf3 {[%emt 0:00:17]} d6 {[%emt 0:00:11]} 3. d4 {[%emt 0:00:06]} cxd4 {[%emt 0:00:05]} 4. Nxd4 {[%emt 0:00:04]} Nf6 {[%emt 0:00:11]} 5. Nc3 {[%emt 0:00:10]} a6 {[%emt 0:00:11]} 6. f4 {[%emt 0:00:13]} e5 {[%emt 0:00:34]} 7. Nf3 {[%emt 0:00:06]} Qc7 {[%emt 0:00:14]} 8. Bd3 {[%emt 0:00:32]} Be7 {[%emt 0:00:16]} 9. O-O {[%emt 0:01:55]} O-O {[%emt 0:00:16] 9...Nbd7 is not played anymore.} 10. a4 {[%emt 0:02:35]} Nbd7 {[%emt 0:00:27]} 11. Kh1 {[%emt 0:02:41]} Nc5 {[%emt 0:00:46] B93: Sicilian Najdorf: 6 f4.} 12. Qe1 {[%emt 0:11:42]} Re8 {[%emt 0:00:48]} 13. fxe5 {[%emt 0:07:02]} dxe5 {[%emt 0:00:13]} 14. Qg3 {[%emt 0:00:59]} Be6 {[%emt 0:01:00]} 15. Ng5 {[%emt 0:19:18]} Nxd3 {[%emt 0:01:06]} 16. Nxe6 {[%emt 0:04:30]} fxe6 {[%emt 0:01:14]} 17. Qxd3 {[%emt 0:05:48]} Rf8 {[%emt 0:00:31]} 18. Be3 {[%emt 0:08:31]} Nh5 $146 {[%emt 0:04:12]} ({Predecessor:} 18... Rac8 19. Bg5 Qc4 20. Rad1 Bb4 21. Bxf6 Qxd3 22. Rxd3 Rxf6 23. Rff3 Rc7 24. Kg1 Kf7 25. Na2 Be7 {½-½ Karasev,V (2353)-Novikov,M (2402) St Petersburg-ch 1999 (4)}) 19. Ne2 {[%emt 0:04:44]} Rac8 {[%emt 0:09:04]} 20. Rxf8+ $11 {[%emt 0:03:46]} Rxf8 {[%emt 0:03:41]} 21. Ng1 {[%emt 0:03:58]} Nf4 {[%emt 0:06:38]} 22. Bxf4 {[%emt 0:01:43]} exf4 {[%emt 0:03:15]} 23. Nf3 {[%emt 0:02:16]} Rd8 {[%emt 0:07:18]} 24. Qe2 {[%emt 0:00:38]} Qd7 {[%emt 0:02:45]} 25. h3 {[%emt 0:02:42]} Bc5 {[%emt 0:09:36]} 26. Qc4 {[%emt 0:05:09]} Be3 {[%emt 0:01:30]} 27. Qe2 {[%emt 0:00:47]} h6 {[%emt 0:06:50]} 28. b3 {[%emt 0:02:10]} Qc6 {[%emt 0:06:06]} 29. e5 {[%emt 0:00:22]} Qd5 {[%emt 0:03:28]} 30. Re1 {[%emt 0:01:07]} Rd7 {[%emt 0:09:44]} 31. Rf1 {[%emt 0:00:32]} Kf8 {[%emt 0:02:06]} 32. Re1 {[%emt 0:00:32]} Ke8 {[%emt 0:00:22]} 33. Rb1 {[%emt 0:01:46]} Kd8 {[%emt 0:00:18]} 34. b4 {[%emt 0:00:45]} Kc8 {[%emt 0:04:19]} 35. Kh2 {[%emt 0:01:53]} Kb8 {[%emt 0:00:19]} 36. Kh1 {[%emt 0:00:14]} Qa2 {[%emt 0:03:35]} 37. Rd1 {[%emt 0:01:11]} Qxa4 {[%emt 0:00:54]} 38. Rxd7 {[%emt 0:01:08]} Qxd7 {[%emt 0:00:12]} 39. Qc4 {[%emt 0:01:04]} g5 {[%emt 0:01:58]} 40. Qe2 {[%emt 0:00:40]} Qa4 {[%emt 0:03:08]} 41. Qd1 {[%emt 0:15:24]} Qxb4 {[%emt 0:01:31]} 42. Nh2 {[%emt 0:03:02]} Qd4 {[%emt 0:03:11]} 43. Qxd4 {[%emt 0:01:13]} Bxd4 {[%emt 0:00:03]} 44. Nf3 {[%emt 0:01:26]} Bc3 {[%emt 0:00:45]} 45. h4 {[%emt 0:00:15]} g4 {[%emt 0:01:00]} 46. Nh2 {[%emt 0:01:19]} h5 {[%emt 0:00:34]} 0-1

[Event "WSTCC-50 2024"]
[Site "Krakow"]
[Date "2024.07.09"]
[Round "7.3"]
[White "Arnason, Jon L"]
[Black "Khachiyan, Melikset"]
[Result "0-1"]
[ECO "B19"]
[WhiteElo "2421"]
[BlackElo "2435"]
[Annotator "TA"]
[PlyCount "66"]
[EventDate "2024.07.01"]
[EventType "team-tourn"]
[EventCountry "POL"]
[SourceTitle "playchess.com"]
[Source "ChessBase"]
[SourceQuality "1"]
[TimeControl "40/5400+30:1800+30"]

{[%evp 24,66,14,11,6,-5,4,0,0,-33,-30,-29,-27,-52,-56,-47,-60,-70,-47,-62,-44,-33,-39,-60,-40,-74,-59,-58,-37,-66,-49,-76,-81,-85,-73,-137,-140,-353,-208,-5310,-5310,-5310,-5310,-29984,-29985]} 1. e4 {[%emt 0:00:07]} c6 {[%emt 0:00:07]} 2. d4 {[%emt 0:00:19]} d5 {[%emt 0:00:05]} 3. Nc3 {[%emt 0:00:28]} dxe4 {[%emt 0:00:14]} 4. Nxe4 {[%emt 0:00:06]} Bf5 {[%emt 0:00:34]} 5. Ng3 {[%emt 0:01:18]} Bg6 {[%emt 0:00:07]} 6. h4 {[%emt 0:00:30]} h6 {[%emt 0:00:10]} 7. Nf3 {[%emt 0:00:14]} Nd7 {[%emt 0:00:08]} 8. h5 {[%emt 0:00:24]} Bh7 {[%emt 0:00:06]} 9. Bd3 {[%emt 0:00:18]} Bxd3 {[%emt 0:00:08]} 10. Qxd3 {[%emt 0:00:04]} e6 {[%emt 0:00:23]} 11. Bd2 {[%emt 0:00:48]} Ngf6 {[%emt 0:00:13]} 12. O-O-O {[%emt 0:00:23]} Be7 {[%emt 0:00:09]} 13. Kb1 {[%emt 0:01:08]} Qb6 {[%emt 0:00:12]} 14. c4 {[%emt 0:16:42]} Rd8 {[%emt 0:00:07]} 15. Qe2 {[%emt 0:03:04]} O-O {[%emt 0:00:26] The position is equal.} 16. Bc1 {[%emt 0:06:42]} Rfe8 {[%emt 0:00:12]} 17. Ne5 {[%emt 0:05:23]} c5 {[%emt 0:01:23]} 18. Be3 {[%emt 0:09:44]} Nb8 {[%emt 0:21:55]} 19. dxc5 {[%emt 0:05:49]} Bxc5 {[%emt 0:00:15]} 20. Bxc5 {[%emt 0:00:32]} Qxc5 {[%emt 0:00:13]} 21. f4 {[%emt 0:01:48]} Nc6 {[%emt 0:00:49]} 22. Ne4 {[%emt 0:03:58]} Nxe4 {[%emt 0:02:05]} 23. Qxe4 {[%emt 0:00:06]} f5 {[%emt 0:09:18]} 24. Qe2 {[%emt 0:04:26]} Nxe5 {[%emt 0:00:07]} 25. fxe5 {[%emt 0:00:09]} a5 {[%emt 0:02:26]} 26. a3 {[%emt 0:00:51]} a4 {[%emt 0:04:39] Black is more active.} 27. Rhf1 {[%emt 0:11:31][%cal Od1d6]} Rxd1+ {[%emt 0:12:24]} 28. Rxd1 $17 {[%emt 0:00:14][%mdl 4096] Endgame. KQR-KQR} Rc8 {[%emt 0:00:05]} 29. Rd6 {[%emt 0:06:21] [#]} ({White should play} 29. Rc1) 29... b5 $1 {[%emt 0:02:46]} 30. Rxe6 $2 {[%emt 0:02:55] White does not recover from this.} (30. cxb5 $2 {is the wrong capture.} Qc1+ 31. Ka2 Rc2 $19) (30. Qd3 $17 Qxc4 (30... Qxe5 31. cxb5 Qe1+ 32. Qd1 $11) 31. Qxc4 Rxc4 32. Rxe6) 30... bxc4 $19 {[%emt 0:00:06] aiming for ...c3.} 31. Ra6 $2 {[%emt 0:14:52]} (31. Qf3) 31... c3 {[%emt 0:00:40]} 32. bxc3 {[%emt 0:00:09]} Qxc3 {[%emt 0:01:29] ( -> ...Rb8+)} 33. Qa2+ {[%emt 0:02:43]} Kh8 {[%emt 0:00:22] Weighted Error Value: White=0.79/Black=0.04 (flawless) .  Loses game:     	White=1     	---        Mistake:       	White=2     	---        Inaccurate:     	White=3     	---        OK:         	White=5     	Black=9      Best:        	---       	Black=3} 0-1

[Event "WSTCC-50 2024"]
[Site "Krakow"]
[Date "2024.07.09"]
[Round "7.3"]
[White "Fraser-Mitchell, Jeremy N"]
[Black "Csom, Etelka"]
[Result "1-0"]
[ECO "D14"]
[WhiteElo "2036"]
[BlackElo "1996"]
[Annotator "NA RC"]
[PlyCount "95"]
[EventDate "2024.07.01"]
[EventType "team-tourn"]
[EventCountry "POL"]
[SourceTitle "playchess.com"]
[Source "ChessBase"]
[SourceQuality "1"]
[TimeControl "40/5400+30:1800+30"]

1. d4 {[%emt 0:04:47]} d5 {[%emt 0:00:09]} 2. c4 {[%emt 0:00:05]} c6 {[%emt 0:00:07]} 3. cxd5 {[%emt 0:00:07]} cxd5 {[%emt 0:00:04]} 4. Nc3 {[%emt 0:00:05]} Nf6 {[%emt 0:00:22]} 5. Nf3 {[%emt 0:00:06]} Nc6 {[%emt 0:00:09]} 6. Bf4 {[%emt 0:00:07]} Bf5 {[%emt 0:03:22]} 7. e3 {[%emt 0:00:09]} e6 {[%emt 0:01:12]} 8. Bb5 {[%emt 0:00:34]} Nd7 {[%emt 0:01:42]} 9. Qa4 {[%emt 0:00:31]} Qb6 {[%emt 0:02:09]} 10. Nh4 {[%emt 0:05:33]} Bg6 {[%emt 0:01:25]} 11. Nxg6 {[%emt 0:01:36] D14: Slav Defence: Exchange variation with ...Bf5.} hxg6 {[%emt 0:00:11]} 12. e4 {[%emt 0:05:03]} dxe4 {[%emt 0:19:16]} 13. d5 {[%emt 0:01:24]} Nc5 {[%emt 0:10:20]} 14. dxc6 {[%emt 0:04:39]} O-O-O {[%emt 0:09:01]} 15. cxb7+ {[%emt 0:00:16]} Kxb7 {[%emt 0:00:15]} 16. Qc2 {[%emt 0:01:00]} Nd3+ {[%emt 0:05:22]} 17. Bxd3 {[%emt 0:00:18]} exd3 {[%emt 0:00:07]} 18. Qd2 {[%emt 0:01:55]} Bb4 {[%emt 0:04:11]} 19. O-O {[%emt 0:02:17]} Qd4 {[%emt 0:04:31]} 20. Qe3 $18 {[%emt 0:02:03]} Qc4 {[%emt 0:02:07]} 21. Qe4+ {[%emt 0:18:25]} Qxe4 {[%emt 0:01:19]} 22. Nxe4 {[%emt 0:00:04]} Rd4 {[%emt 0:00:38]} 23. f3 {[%emt 0:00:09]} f5 {[%emt 0:00:29]} 24. Be3 {[%emt 0:00:06]} Rc4 {[%emt 0:01:45]} 25. Nd2 {[%emt 0:00:36]} Rc2 {[%emt 0:01:10]} 26. Rfd1 {[%emt 0:02:22]} Rhc8 {[%emt 0:02:19]} 27. f4 {[%emt 0:30:09]} a5 {[%emt 0:06:13]} 28. Nf3 {[%emt 0:06:02]} Rxb2 {[%emt 0:03:40]} 29. Rxd3 {[%emt 0:01:40]} Rcc2 {[%emt 0:01:15]} 30. a3 {[%emt 0:03:29]} Bc3 {[%emt 0:04:31]} 31. Rxc3 {[%emt 0:02:13]} Rxc3 {[%emt 0:00:13]} 32. Bd4 {[%emt 0:00:04]} Rcc2 {[%emt 0:00:45]} 33. Bxb2 {[%emt 0:00:05]} Rxb2 {[%emt 0:00:08]} 34. Ne5 {[%emt 0:01:12]} Ka6 {[%emt 0:01:58]} 35. Rd1 {[%emt 0:02:18]} Kb5 {[%emt 0:00:57]} 36. Rd6 {[%emt 0:01:08]} Ra2 {[%emt 0:00:30]} 37. Rxe6 {[%emt 0:01:12]} Rxa3 {[%emt 0:00:26]} 38. Rxg6 {[%emt 0:00:41]} Ra1+ {[%emt 0:00:33]} 39. Kf2 {[%emt 0:00:05]} a4 {[%emt 0:00:12]} 40. Rxg7 {[%emt 0:00:55]} a3 {[%emt 0:00:11]} 41. Ra7 {[%emt 0:30:42]} a2 {[%emt 0:30:37]} 42. Nd3 {[%emt 0:00:00]} Rd1 {[%emt 0:00:00]} 43. Rxa2 {[%emt 0:00:00]} Rxd3 {[%emt 0:00:00]} 44. Re2 {[%emt 0:00:00]} Kc6 {[%emt 0:00:00]} 45. Re5 {[%emt 0:00:00]} Kd6 {[%emt 0:00:00]} 46. Rxf5 {[%emt 0:00:00]} Ke6 {[%emt 0:00:00]} 47. Re5+ {[%emt 0:00:00]} Kf6 {[%emt 0:00:00]} 48. Re3 {[%emt 0:00:00]} 1-0

[Event "WSTCC-50 2024"]
[Site "Krakow"]
[Date "2024.07.09"]
[Round "7.3"]
[White "Regan, Natasha K"]
[Black "Clark, Gary M"]
[Result "1/2-1/2"]
[ECO "A05"]
[WhiteElo "2015"]
[BlackElo "2299"]
[Annotator "TA"]
[PlyCount "38"]
[EventDate "2024.07.01"]
[EventType "team-tourn"]
[EventCountry "POL"]
[SourceTitle "playchess.com"]
[Source "ChessBase"]
[SourceQuality "1"]
[TimeControl "40/5400+30:1800+30"]

{[%evp 11,38,13,20,0,0,0,17,-18,-19,-20,-6,-19,-19,-30,-16,-59,-42,-67,-16,-6,9,14,18,12,28,16,20,18,14]} 1. Nf3 {[%emt 0:00:06]} Nf6 {[%emt 0:00:14]} 2. c4 {[%emt 0:00:22]} c5 {[%emt 0:00:25]} 3. g3 {[%emt 0:00:21]} d5 {[%emt 0:00:33]} 4. cxd5 {[%emt 0:00:41]} Nxd5 {[%emt 0:00:05]} 5. Nc3 {[%emt 0:01:07]} Nc6 {[%emt 0:01:12]} 6. Bg2 {[%emt 0:00:49]} g6 {[%emt 0:00:19]} 7. h4 {[%emt 0:05:07]} h6 {[%emt 0:00:43]} 8. O-O {[%emt 0:11:53]} Bg7 {[%emt 0:01:19]} 9. Qb3 {[%emt 0:06:17]} Ndb4 {[%emt 0:08:20]} 10. d3 {[%emt 0:06:39]} O-O {[%emt 0:04:10]} 11. a3 {[%emt 0:03:50]} Be6 {[%emt 0:00:22]} 12. Qa4 {[%emt 0:03:16]} Nd5 {[%emt 0:03:14]} 13. Ne4 {[%emt 0:01:54]} Qb6 {[%emt 0:02:28]} 14. Rb1 {[%emt 0:05:53]} Rfd8 {[%emt 0:14:01]} (14... f5 $15 15. Ned2 Qc7) 15. Bd2 $11 {[%emt 0:03:08]} f5 {[%emt 0:02:06]} (15... Nf4 $5 16. Bxf4 Bb3 $11 (16... Bxb2 $2 {geht unter.} 17. Qc2 $18)) 16. Nc3 {[%emt 0:01:49]} Rac8 {[%emt 0:11:52]} 17. Nxd5 {[%emt 0:03:15]} Bxd5 {[%emt 0:00:20]} 18. b4 {[%emt 0:01:59]} cxb4 {[%emt 0:05:08]} 19. axb4 {[%emt 0:00:28]} Bxf3 {[%emt 0:10:23] Gewichteter Fehlerwert: Weiß=0.12 (sehr präzise) /Schwarz=0.08 (makellos) .  Fehler:       	---       	Schwarz=1     Ungenau:       	Weiß=2     	---        OK:         	Weiß=5     	Schwarz=7     Bester:       	---       	Schwarz=1} 1/2-1/2

[Event "WSTCC-50 2024"]
[Site "Krakow"]
[Date "2024.07.09"]
[Round "7.4"]
[White "Novikov, Igor"]
[Black "Thorhallsson, Throstur"]
[Result "1/2-1/2"]
[ECO "D37"]
[WhiteElo "2509"]
[BlackElo "2385"]
[Annotator "TA"]
[PlyCount "45"]
[EventDate "2024.07.01"]
[EventType "team-tourn"]
[EventCountry "POL"]
[SourceTitle "playchess.com"]
[Source "ChessBase"]
[SourceQuality "1"]
[TimeControl "40/5400+30:1800+30"]

{[%evp 9,45,20,23,27,36,21,27,25,32,18,26,20,34,18,39,40,35,40,41,25,45,24,41,38,44,41,41,43,53,48,57,18,20,12,13,15,39,35]} 1. d4 {[%emt 0:00:04]} Nf6 {[%emt 0:00:26]} 2. c4 {[%emt 0:00:09]} e6 {[%emt 0:00:07]} 3. Nf3 {[%emt 0:00:21]} d5 {[%emt 0:00:26]} 4. Nc3 {[%emt 0:00:33]} a6 {[%emt 0:01:21]} 5. cxd5 {[%emt 0:01:17]} exd5 {[%emt 0:00:21]} 6. Bg5 {[%emt 0:00:42]} Be6 {[%emt 0:00:34]} 7. e3 {[%emt 0:01:07]} Nbd7 {[%emt 0:01:13]} 8. Bd3 {[%emt 0:00:52] White has an edge.} Bd6 {[%emt 0:00:45]} 9. O-O {[%emt 0:00:57]} O-O {[%emt 0:01:09]} 10. h3 {[%emt 0:01:07]} Re8 {[%emt 0:04:24]} 11. Qc2 {[%emt 0:26:58][%cal Od3h7] next Bxh7+! is good for White.} h6 {[%emt 0:04:34]} 12. Bf4 {[%emt 0:00:48]} Qe7 {[%emt 0:17:16]} 13. Rac1 {[%emt 0:03:29]} c6 {[%emt 0:10:46]} 14. Ne5 {[%emt 0:11:49]} Nf8 {[%emt 0:05:59]} 15. Na4 {[%emt 0:09:05]} N6d7 {[%emt 0:10:25]} 16. Nxd7 {[%emt 0:08:28]} Nxd7 {[%emt 0:00:40]} 17. Bxd6 {[%emt 0:02:23]} Qxd6 {[%emt 0:00:06] [#]} 18. b4 $1 {[%emt 0:02:16]} Re7 {[%emt 0:05:31]} ({Much weaker is} 18... Qxb4 $6 19. Rb1 Qd6 20. Rxb7 $16) (18... b5 19. Nc5) 19. Nc5 {[%emt 0:02:38]} Nxc5 {[%emt 0:04:21]} 20. Qxc5 {[%emt 0:01:35]} Qd8 {[%emt 0:01:44]} 21. a4 {[%emt 0:01:36]} Rc8 {[%emt 0:00:37]} 22. Qc2 {[%emt 0:00:14]} Rcc7 {[%emt 0:04:39]} 23. Bh7+ {[%emt 0:03:15] Weighted Error Value: White=0.07 (flawless) /Black=0.08 (flawless) .  Inaccurate:     	White=1     	---        OK:         	White=9     	Black=6} 1/2-1/2

[Event "WSTCC-50 2024"]
[Site "Krakow"]
[Date "2024.07.09"]
[Round "7.4"]
[White "Duncan, Chris R"]
[Black "Fink-Nunn, Petra"]
[Result "1/2-1/2"]
[ECO "D30"]
[WhiteElo "2156"]
[BlackElo "1947"]
[Annotator "RC"]
[PlyCount "38"]
[EventDate "2024.07.01"]
[EventType "team-tourn"]
[EventCountry "POL"]
[SourceTitle "playchess.com"]
[Source "ChessBase"]
[SourceQuality "1"]
[TimeControl "40/5400+30:1800+30"]

1. d4 {[%emt 0:00:34]} d5 {[%emt 0:00:12]} 2. c4 {[%emt 0:00:26]} e6 {[%emt 0:00:14]} 3. Nf3 {[%emt 0:01:01]} Nf6 {[%emt 0:00:19]} 4. g3 {[%emt 0:01:15]} Bb4+ {[%emt 0:00:12]} 5. Bd2 {[%emt 0:00:53]} Be7 {[%emt 0:00:09]} 6. Bg2 {[%emt 0:00:18]} O-O {[%emt 0:00:46]} 7. O-O {[%emt 0:00:04]} c6 {[%emt 0:00:51]} 8. Nc3 {[%emt 0:01:37]} dxc4 {[%emt 0:13:23]} 9. e4 {[%emt 0:01:19]} b5 {[%emt 0:04:57]} 10. e5 {[%emt 0:03:59]} Nd5 {[%emt 0:03:20]} 11. Ne4 {[%emt 0:02:28]} Nd7 {[%emt 0:04:53]} 12. a4 {[%emt 0:03:33]} Bb7 {[%emt 0:06:08]} 13. b3 {[%emt 0:05:46]} cxb3 {[%emt 0:07:38]} 14. Qxb3 {[%emt 0:00:53]} a6 {[%emt 0:02:25]} 15. h4 {[%emt 0:22:21]} h6 {[%emt 0:14:06]} 16. Rfc1 {[%emt 0:03:38]} Qb8 {[%emt 0:04:06]} 17. Ne1 {[%emt 0:03:16]} Qa7 {[%emt 0:03:37]} 18. Be3 {[%emt 0:07:14]} N7b6 {[%emt 0:04:24]} 19. axb5 {[%emt 0:15:49]} cxb5 {[%emt 0:00:14]} 1/2-1/2

[Event "WSTCC-50 2024"]
[Site "Krakow"]
[Date "2024.07.09"]
[Round "7.4"]
[White "Kozma, Edit"]
[Black "Noyce, Robert C"]
[Result "1/2-1/2"]
[ECO "B01"]
[WhiteElo "1859"]
[BlackElo "2088"]
[Annotator "NA RC"]
[PlyCount "80"]
[EventDate "2024.07.01"]
[EventType "team-tourn"]
[EventCountry "POL"]
[SourceTitle "playchess.com"]
[Source "ChessBase"]
[SourceQuality "1"]
[TimeControl "40/5400+30:1800+30"]

1. e4 {[%emt 0:00:09]} d5 {[%emt 0:00:10]} 2. exd5 {[%emt 0:00:35]} Nf6 {[%emt 0:00:09]} 3. Nf3 {[%emt 0:00:52]} Nxd5 {[%emt 0:00:39]} 4. d4 {[%emt 0:00:54]} g6 {[%emt 0:00:14]} 5. c4 {[%emt 0:03:43]} Nb6 {[%emt 0:00:30]} 6. Nc3 {[%emt 0:00:47]} Bg7 {[%emt 0:00:33]} 7. h3 {[%emt 0:01:56]} O-O {[%emt 0:00:20]} 8. c5 {[%emt 0:05:28]} Nd5 {[%emt 0:05:39]} 9. Bc4 {[%emt 0:01:33]} c6 {[%emt 0:02:39]} 10. O-O {[%emt 0:02:10]} Be6 {[%emt 0:12:38]} 11. Qb3 {[%emt 0:09:37]} Nxc3 {[%emt 0:04:12]} 12. bxc3 {[%emt 0:05:17]} Bxc4 {[%emt 0:01:18]} 13. Qxc4 $11 {[%emt 0:00:06]} b5 {[%emt 0:07:19]} 14. cxb6 {[%emt 0:01:46]} axb6 {[%emt 0:00:44]} 15. Bf4 {[%emt 0:01:04]} Qd5 {[%emt 0:13:51]} 16. Qxd5 {[%emt 0:03:45]} cxd5 {[%emt 0:00:45]} 17. Rfe1 {[%emt 0:02:12]} e6 {[%emt 0:01:14]} 18. Be5 {[%emt 0:06:40]} Nd7 {[%emt 0:01:48]} 19. Bxg7 {[%emt 0:11:09]} Kxg7 {[%emt 0:00:08]} 20. Reb1 {[%emt 0:00:28]} Ra3 {[%emt 0:11:45]} 21. Ne5 {[%emt 0:07:37]} Nxe5 {[%emt 0:00:21]} 22. dxe5 {[%emt 0:01:02]} Rc8 {[%emt 0:00:20]} 23. Rxb6 {[%emt 0:00:50]} Rcxc3 {[%emt 0:00:13]} 24. Rb2 {[%emt 0:04:53]} g5 {[%emt 0:01:38]} 25. Rf1 {[%emt 0:06:15]} Rc4 {[%emt 0:01:52]} 26. Re2 {[%emt 0:02:43]} Rca4 {[%emt 0:03:30]} 27. Ra1 {[%emt 0:01:12]} Kg6 {[%emt 0:01:49]} 28. f3 {[%emt 0:06:13]} h5 {[%emt 0:02:16]} 29. Kf2 {[%emt 0:01:25]} h4 {[%emt 0:02:19]} 30. Ke1 {[%emt 0:05:35]} Kf5 {[%emt 0:02:06]} 31. Kd1 {[%emt 0:02:15]} d4 {[%emt 0:05:21]} 32. Rb1 {[%emt 0:02:44]} Rxa2 {[%emt 0:02:19]} 33. Rb7 {[%emt 0:00:38]} Ra1+ {[%emt 0:01:22]} 34. Kc2 {[%emt 0:00:36]} R4a2+ {[%emt 0:00:51]} 35. Rb2 {[%emt 0:00:16]} Rxb2+ {[%emt 0:00:28]} 36. Kxb2 {[%emt 0:00:05]} Ra5 {[%emt 0:00:14]} 37. Kb3 {[%emt 0:02:02]} Rxe5 {[%emt 0:00:13]} 38. Rd2 {[%emt 0:00:14]} Re3+ {[%emt 0:00:53]} 39. Kc4 {[%emt 0:00:10]} e5 {[%emt 0:00:09]} 40. Kd5 {[%emt 0:00:16]} Kf4 1/2-1/2

[Event "WSTCC-50 2024"]
[Site "Krakow"]
[Date "2024.07.09"]
[Round "7.5"]
[White "Adams, Michael"]
[Black "David, Alberto"]
[Result "1/2-1/2"]
[ECO "B83"]
[WhiteElo "2670"]
[BlackElo "2502"]
[Annotator "TA"]
[PlyCount "130"]
[EventDate "2024.07.01"]
[EventType "team-tourn"]
[EventCountry "POL"]
[SourceTitle "playchess.com"]
[Source "ChessBase"]
[SourceQuality "1"]
[TimeControl "40/5400+30:1800+30"]

{[%evp 40,130,0,11,15,19,18,17,11,10,14,6,20,13,14,23,19,7,8,0,0,0,0,0,0,0,10,10,10,14,14,14,14,8,13,15,87,85,85,8,30,8,30,8,8,8,8,0,8,8,8,8,8,8,8,8,8,8,8,8,9,25,66,66,66,0,66,59,66,40,75,75,75,75,76,76,76,66,74,0,0,0,0,0,0,0,0,0,0,0,0,0,56]} 1. e4 {[%emt 0:00:03]} c5 {[%emt 0:00:07]} 2. Nf3 {[%emt 0:00:07]} e6 {[%emt 0:00:06]} 3. d4 {[%emt 0:00:09]} cxd4 {[%emt 0:00:06]} 4. Nxd4 {[%emt 0:00:03]} Nf6 {[%emt 0:00:08]} 5. Nc3 {[%emt 0:00:07]} Nc6 {[%emt 0:00:05]} 6. Be2 {[%emt 0:01:08]} d6 {[%emt 0:00:23]} 7. O-O {[%emt 0:01:54]} Be7 {[%emt 0:01:19]} 8. Be3 {[%emt 0:01:08]} O-O {[%emt 0:00:23]} 9. a4 {[%emt 0:07:26]} a6 {[%emt 0:30:05]} 10. f4 {[%emt 0:04:34]} Qc7 {[%emt 0:05:29]} 11. Kh1 {[%emt 0:00:12]} Re8 {[%emt 0:00:49]} 12. Bf3 {[%emt 0:00:59]} Bd7 {[%emt 0:04:05]} 13. Nb3 {[%emt 0:03:50]} b6 {[%emt 0:00:16]} 14. Qe2 {[%emt 0:01:46] B85: Sizilianisch (Scheveninger System).} Bc8 {[%emt 0:08:31]} 15. e5 {[%emt 0:13:17]} Nd7 {[%emt 0:18:23]} 16. exd6 {[%emt 0:07:46]} Bxd6 {[%emt 0:00:06]} 17. Rad1 {[%emt 0:02:56]} Rb8 {[%emt 0:03:32]} 18. Nd4 $146 {[%emt 0:14:05]} ({Predecessor:} 18. Ne4 Bf8 19. Qf2 Nb4 20. Nd4 Nd5 21. Bc1 Bb7 22. c3 Nc5 23. Nxc5 bxc5 24. Ne2 c4 25. Nd4 {½-½ Thipsay,P (2486)-Satyapragyan,S (2415) IND-ch 30th Calicut 2003 (4)}) 18... Nxd4 {[%emt 0:01:58]} 19. Bxd4 {[%emt 0:04:37]} Bc5 {[%emt 0:17:22]} 20. f5 {[%emt 0:10:43]} Bxd4 {[%emt 0:00:38]} 21. Rxd4 {[%emt 0:00:09]} Nf6 {[%emt 0:00:13]} 22. Ne4 {[%emt 0:07:22]} Nxe4 {[%emt 0:05:07]} 23. Rxe4 {[%emt 0:00:54]} Bb7 {[%emt 0:01:54]} 24. Re5 {[%emt 0:03:12]} Bxf3 {[%emt 0:00:19]} 25. Rxf3 {[%emt 0:01:02]} Qc6 {[%emt 0:00:58]} 26. fxe6 {[%emt 0:03:08]} Rxe6 {[%emt 0:00:18]} 27. Rxe6 {[%emt 0:00:48]} Qxe6 {[%emt 0:00:44]} 28. Qxa6 {[%emt 0:03:40]} (28. Qxe6 {vereinfacht} fxe6 29. Rc3 Kf7 30. Kg1) 28... Qe4 {[%emt 0:00:05]} 29. Qf1 {[%emt 0:04:16]} Qxc2 {[%emt 0:00:26]} 30. Rxf7 {[%emt 0:01:14]} Qxa4 {[%emt 0:00:19]} 31. h3 {[%emt 0:00:28]} h6 {[%emt 0:00:49]} 32. Rf4 {[%emt 0:01:37]} Qc2 {[%emt 0:00:31]} 33. Qc4+ {[%emt 0:00:36]} Qxc4 {[%emt 0:00:05]} 34. Rxc4 {[%emt 0:00:01]} Kf7 {[%emt 0:00:54]} 35. Rc6 {[%emt 0:00:31]} b5 {[%emt 0:00:15]} 36. b4 {[%emt 0:00:30]} Rd8 {[%emt 0:00:48]} 37. Rc5 {[%emt 0:00:14]} Rd2 {[%emt 0:00:14]} (37... Kf6 $11) 38. Rxb5 {[%emt 0:00:13]} Rb2 {[%emt 0:00:05]} 39. h4 {[%emt 0:01:53]} (39. Rb8 $16) 39... h5 {[%emt 0:00:51]} 40. Kh2 {[%emt 0:00:28]} Rb3 {[%emt 0:00:08]} 41. Rb6 {[%emt 0:31:07]} g6 {[%emt 0:04:44]} 42. b5 {[%emt 0:00:00]} Kg7 {[%emt 0:00:46]} 43. Rb8 {[%emt 0:00:00]} Kf6 {[%emt 0:04:07]} 44. b6 {[%emt 0:00:00]} Kf5 $1 {[%emt 0:00:26]} 45. b7 {[%emt 0:00:00]} Kg4 {[%emt 0:01:08]} 46. Rg8 {[%emt 0:00:00]} Rxb7 {[%emt 0:00:06]} 47. Rxg6+ {[%emt 0:00:00]} Kf4 $1 {[%emt 0:00:21]} 48. Rg5 {[%emt 0:00:00]} Rh7 {[%emt 0:00:52]} 49. Kh3 {[%emt 0:00:00]} Rh8 {[%emt 0:03:06]} 50. Ra5 {[%emt 0:00:00]} Rh7 {[%emt 0:02:47]} 51. Kh2 {[%emt 0:00:00]} Rh8 {[%emt 0:03:21]} 52. Rg5 {[%emt 0:00:00]} Rh7 {[%emt 0:00:51]} 53. Kg1 {[%emt 0:00:00]} Rh8 {[%emt 0:01:13]} 54. Kf2 {[%emt 0:00:00]} Rh7 {[%emt 0:06:39]} 55. g3+ {[%emt 0:00:00]} Ke4 {[%emt 0:00:04]} 56. Kg2 {[%emt 0:00:00]} Rh8 {[%emt 0:00:44]} 57. Ra5 {[%emt 0:00:00]} Rh7 {[%emt 0:00:39]} 58. g4 {[%emt 0:00:00]} Rg7 {[%emt 0:06:31]} 59. Rg5 {[%emt 0:02:21]} ({Doch nicht} 59. Rxh5 Rxg4+ 60. Kh3 Rg7 $11) (59. g5 $16) 59... Ra7 $11 {[%emt 0:00:04]} ({Minderwertig wäre} 59... Rxg5 60. hxg5 Ke5 61. gxh5 Kf5 62. h6 (62. g6 Kf6 63. Kf2 Kg7 64. Kg3 Kh6 65. Kg4 Kg7 66. Kg5 Kf8) 62... Kg6 63. Kf2 Kh7 64. Kf3) 60. gxh5 {[%emt 0:02:04]} (60. Rxh5 $5 Ra2+ $8 61. Kg3 Ra3+ 62. Kf2 Ra2+ 63. Ke1 $11) 60... Kf4 $1 {[%emt 0:00:15]} 61. h6 {[%emt 0:01:17]} Ra2+ {[%emt 0:02:24]} 62. Kf1 {[%emt 0:00:57]} Ra7 {[%emt 0:00:50]} 63. Ke2 {[%emt 0:01:21]} Re7+ {[%emt 0:00:31]} 64. Kd3 {[%emt 0:00:39]} Rh7 {[%emt 0:00:31]} 65. Rg6 {[%emt 0:00:06]} Rd7+ {[%emt 0:00:32]} ({Günstiger ist} 65... Ra7 $11) 1/2-1/2